fUSD/lending_fUSD_20250207
["ID","MTS","AMOUNT","RATE_DAILY","PERIOD"]
[352144452,1738961442425,-151.0,0.00015999,2]
[352144455,1738961442440,-302.563588,0.00015999,2]
[352144457,1738961442457,-302.563588,0.00015999,2]
[352144460,1738961442471,-151.0,0.00015999,2]
[352144462,1738961442484,-256.023931,0.00015999,2]
[352144465,1738961442499,-21975406.43,0.00016,5]
[352144467,1738961442513,-7750.97864159,0.00016,2]
[352144470,1738961442527,-151.0,0.00016,2]
[352144473,1738961442546,-151.0,0.00016,2]
[352144475,1738961442560,-339.850764,0.00016,2]
[352144478,1738961442574,-339.850764,0.00016,2]
[352144480,1738961442589,-339.850764,0.00016,2]
[352144482,1738961442602,-339.850764,0.00016,2]
[352144485,1738961442614,-151.0,0.00016,2]
[352144488,1738961442629,-151.0,0.00016,2]
[352144490,1738961442644,-151.0,0.00016,2]
[352144492,1738961442657,-151.0,0.00016,2]
[352144495,1738961442669,-429.311271,0.00016,2]
[352144497,1738961442682,-429.311271,0.00016,2]
[352144500,1738961442697,-429.311271,0.00016,2]
[352144501,1738961442715,-5361.861183,0.00016,2]
[352144502,1738961442726,-429.311271,0.00016,2]
[352144503,1738961442739,-5361.861183,0.00016,2]
[352144504,1738961442755,-5361.861183,0.00016,2]
[352144505,1738961442769,-5361.861183,0.00016,2]
[352144506,1738961442781,-2997.269093,0.00016,2]
[352144507,1738961442794,-2997.269093,0.00016,2]
[352144508,1738961442806,-1483.274414,0.00016,2]
[352144509,1738961442818,-1483.274414,0.00016,2]
[352144510,1738961442831,-151.0,0.00016,2]
[352144511,1738961442844,-524.382898,0.00016,2]
[352144512,1738961442855,-524.382898,0.00016,2]
[352144514,1738961442867,-971.051213,0.00016,2]
[352144517,1738961442880,-971.051213,0.00016,2]
[352144519,1738961442893,-2507.168506,0.00016,2]
[352144522,1738961442911,-2507.168506,0.00016,2]
[352144524,1738961442923,-151.0,0.00016,2]
[352144526,1738961442934,-151.0,0.00016,2]
[352144529,1738961442947,-151.0,0.00016,2]
[352144531,1738961442959,-258.071323,0.00016,2]
[352144533,1738961442972,-151.0,0.00016,2]
[352144536,1738961442985,-151.0,0.00016,2]
[352144538,1738961442996,-10000.0,0.00016,2]
[352144540,1738961443009,-10000.0,0.00016,2]
[352144542,1738961443021,-151.0,0.00016,2]
[352144545,1738961443033,-10000.0,0.00016,2]
[352144547,1738961443046,-151.0,0.00016,2]
[352144550,1738961443060,-10000.0,0.00016,2]
[352144554,1738961443073,-10000.0,0.00016,2]
[352144556,1738961443086,-660.355421,0.00016,2]
[352144558,1738961443099,-660.355421,0.00016,2]
[352144561,1738961443112,-160.448173,0.00016,2]
[352144563,1738961443128,-160.448173,0.00016,2]
[352144565,1738961443140,-5000.0,0.00016,2]
[352144568,1738961443152,-431.342835,0.00016,2]
[352144570,1738961443164,-431.342835,0.00016,2]
[352144572,1738961443177,-161.080515,0.00016,2]
[352144574,1738961443189,-252.926132,0.00016,2]
[352144576,1738961443202,-252.926132,0.00016,2]
[352144579,1738961443215,-1618.49441,0.00016,2]
[352144581,1738961443226,-1618.49441,0.00016,2]
[352144583,1738961443238,-151.0,0.00016,2]
[352144587,1738961443251,-405.317945,0.00016,2]
[352144589,1738961443262,-405.317945,0.00016,2]
[352144591,1738961443274,-151.0,0.00016,2]
[352144593,1738961443287,-151.0,0.00016,2]
[352144597,1738961443303,-151.0,0.00016,2]
[352144599,1738961443315,-151.0,0.00016,2]
[352144601,1738961443327,-151.0,0.00016,2]
[352144604,1738961443340,-151.0,0.00016,2]
[352144606,1738961443352,-151.0,0.00016,2]
[352144609,1738961443365,-908.973936,0.00016,2]
[352144612,1738961443377,-908.973936,0.00016,2]
[352144616,1738961443389,-908.973936,0.00016,2]
[352144619,1738961443401,-908.973936,0.00016,2]
[352144622,1738961443413,-554.518408,0.00016,2]
[352144626,1738961443425,-554.518408,0.00016,2]
[352144628,1738961443437,-151.0,0.00016,2]
[352144630,1738961443449,-151.0,0.00016,2]
[352144633,1738961443462,-151.0,0.00016,2]
[352144635,1738961443474,-229.303987,0.00016,2]
[352144637,1738961443486,-151.0,0.00016,2]
[352144639,1738961443499,-250.030112,0.00016,2]
[352144642,1738961443510,-467.230511,0.00016,2]
[352144644,1738961443522,-152.868327,0.00016,2]
[352144646,1738961443535,-467.230511,0.00016,2]
[352144649,1738961443548,-476.013224,0.00016,2]
[352144651,1738961443561,-156.629238,0.00016,2]
[352144653,1738961443575,-476.013224,0.00016,2]
[352144656,1738961443589,-156.629238,0.00016,2]
[352144658,1738961443602,-151.0,0.00016,2]
[352144661,1738961443615,-151.0,0.00016,2]
[352144663,1738961443628,-151.0,0.00016,2]
[352144665,1738961443640,-302.563588,0.00016,2]
[352144668,1738961443652,-302.563588,0.00016,2]
[352144670,1738961443665,-151.0,0.00016,2]
[352144672,1738961443677,-256.023931,0.00016,2]
[352144675,1738961443690,-382.3239903,0.00016109,2]
[352144677,1738961443703,-494.97620355,0.00016128,2]
[352144679,1738961443715,-500.0,0.00016164,2]
[352144681,1738961443727,-1272.0,0.00016253,2]
[352144684,1738961443740,-2023.0,0.00016253,2]
[352144686,1738961443752,-150.0,0.00016253,2]
[352144689,1738961443765,-574.231,0.00016253,2]
[352144691,1738961443778,-638.0,0.00016253,2]
[352144693,1738961443790,-1827.0,0.00016253,2]
[352144696,1738961443806,-783.0,0.00016253,2]
[352144698,1738961443820,-907.0,0.00016253,2]
[352144700,1738961443833,-1264.0,0.00016253,2]
[352144702,1738961443848,-2954.0,0.00016253,2]
[352144705,1738961443861,-4024.0,0.00016253,2]
[352144707,1738961443874,-539.0,0.00016253,2]
[352144709,1738961443887,-3912.0,0.00016253,2]
[352144711,1738961443900,-150.0,0.00016253,2]
[352144714,1738961443914,-1007.0,0.00016253,2]
[352144716,1738961443928,-1108.0,0.00016253,2]
[352144719,1738961443940,-3000.163428,0.000163,2]
[352144721,1738961443954,-500.0,0.00016307,2]
[352144723,1738961443966,-303.39073009,0.00016338,2]
[352144727,1738961443979,-30397.09837371,0.0001638,2]
[352144730,1738961443992,-300.0,0.00016399,2]
[352144733,1738961444005,-461156.19147737,0.000164,4]
[352144738,1738961444018,-3830.33627376,0.000164,2]
[352144741,1738961444031,-2000.0,0.000164,2]
[352144745,1738961444047,-2000.0,0.000164,2]
[352144749,1738961444060,-2000.0,0.000164,2]
[352144752,1738961444073,-2000.0,0.000164,2]
[352144756,1738961444086,-2000.0,0.000164,2]
[352144759,1738961444100,-2000.0,0.000164,2]
[352144761,1738961444116,-2000.0,0.000164,2]
[352144764,1738961444129,-854.1616971,0.00016427,2]
[352144766,1738961444142,-1399.3794442,0.00016427,2]
[352144768,1738961444156,-204.3659675,0.00016427,2]
[352144771,1738961444169,-745.5944956,0.00016427,2]
[352144773,1738961444184,-1023.3693113,0.00016427,2]
[352144775,1738961444207,-501.8777945,0.00016438,2]
[352144777,1738961444228,-500.0,0.00016438,2]
[352144779,1738961444241,-500.0,0.00016438,2]
[352144782,1738961444253,-568.79421304,0.00016438,2]
[352144784,1738961444266,-507.79427759,0.00016438,2]
[352144786,1738961444279,-593.38566347,0.00016438,2]
[352144789,1738961444291,-268.13142118,0.00016438,2]
[352144791,1738961444304,-502.2252673,0.00016438,2]
[352144793,1738961444316,-500.0,0.00016438,2]
[352144795,1738961444328,-178.86616894,0.00016438,2]
[352144798,1738961444341,-501.81139134,0.00016438,2]
[352144800,1738961444353,-502.95547544,0.00016438,2]
[352144802,1738961444366,-515.78378648,0.00016438,2]
[352144805,1738961444378,-500.0,0.00016438,2]
[352144807,1738961444391,-500.0,0.00016438,2]
[352144809,1738961444404,-500.0,0.00016438,2]
[352144811,1738961444416,-500.0,0.00016438,2]
[352144814,1738961444427,-500.0,0.00016438,2]
[352144816,1738961444442,-500.0,0.00016438,2]
[352144818,1738961444454,-571.1233971,0.00016438,2]
[352144820,1738961444467,-500.0,0.00016438,2]
[352144823,1738961444479,-445.83483851,0.00016438,2]
[352144825,1738961444493,-500.81454445,0.00016438,2]
[352144827,1738961444505,-293.82858186,0.00016438,2]
[352144830,1738961444517,-500.0,0.00016438,2]
[352144832,1738961444530,-500.0,0.00016438,2]
[352144834,1738961444539,-500.0,0.00016438,2]
[352144836,1738961444551,-399.42896717,0.00016438,2]
[352144838,1738961444561,-151.0,0.00016438,2]
[352144840,1738961444570,-267.22974543,0.00016438,2]
[352144842,1738961444580,-500.0,0.00016438,2]
[352144844,1738961444590,-250.12165079,0.00016438,2]
[352144846,1738961444600,-500.0,0.00016438,2]
[352144848,1738961444610,-500.0,0.00016438,2]
[352144850,1738961444619,-154.86496111,0.00016438,2]
[352144852,1738961444629,-500.0,0.00016438,2]
[352144854,1738961444640,-178.724643,0.00016438,2]
[352144856,1738961444650,-157.04588351,0.00016438,2]
[352144858,1738961444660,-503.3246601,0.00016438,2]
[352144860,1738961444670,-500.0,0.00016438,2]
[352144862,1738961444680,-500.0,0.00016438,2]
[352144864,1738961444690,-823.67,0.00016438,2]
[352144866,1738961444700,-500.0,0.00016438,2]
[352144868,1738961444710,-500.0,0.00016438,2]
[352144914,1738961445126,-500.0,0.00016438,2]
[352144918,1738961445160,-500.0,0.00016438,2]
[352144920,1738961445174,-500.0,0.00016438,2]
[352144922,1738961445183,-500.0,0.00016438,2]
[352144924,1738961445195,-500.0,0.00016438,2]
[352144926,1738961445204,-500.0,0.00016438,2]
[352144928,1738961445213,-500.0,0.00016438,2]
[352144930,1738961445223,-500.0,0.00016438,2]
[352144932,1738961445232,-500.0,0.00016438,2]
[352144934,1738961445241,-396.07575947,0.00016438,2]
[352144936,1738961445251,-500.0,0.00016438,2]
[352144938,1738961445260,-506.49,0.00016438,2]
[352144940,1738961445270,-500.0,0.00016438,2]
[352144942,1738961445280,-500.0,0.00016438,2]
[352144944,1738961445290,-503.26021307,0.00016438,2]
[352144947,1738961445303,-500.0,0.00016438,2]
[352144949,1738961445313,-500.0,0.00016438,2]
[352144951,1738961445323,-503.08965128,0.00016438,2]
[352144952,1738961445332,-500.0,0.00016438,2]
[352144955,1738961445342,-562.46,0.00016438,2]
[352144956,1738961445351,-500.0,0.00016438,2]
[352144958,1738961445360,-500.0,0.00016438,2]
[352144960,1738961445369,-500.0,0.00016438,2]
[352144962,1738961445379,-500.0,0.00016438,2]
[352144964,1738961445389,-504.16256934,0.00016438,2]
[352144967,1738961445398,-502.84800518,0.00016438,2]
[352144969,1738961445408,-500.0,0.00016438,2]
[352144971,1738961445417,-282.34483304,0.00016438,2]
[352144972,1738961445426,-644.8797961,0.00016438,2]
[352144974,1738961445435,-501.06512107,0.00016438,2]
[352144976,1738961445445,-500.0,0.00016438,2]
[352144978,1738961445454,-500.0,0.00016438,2]
[352144980,1738961445464,-500.0,0.00016438,2]
[352144982,1738961445473,-500.0,0.00016438,2]
[352144984,1738961445483,-500.0,0.00016438,2]
[352144986,1738961445493,-500.0,0.00016438,2]
[352144988,1738961445502,-500.0,0.00016438,2]
[352144990,1738961445512,-500.0,0.00016438,2]
[352144992,1738961445521,-151.0,0.00016438,2]
[352144994,1738961445531,-500.0,0.00016438,2]
[352144996,1738961445540,-500.64084087,0.00016438,2]
[352144998,1738961445551,-503.98314766,0.00016438,2]
[352145000,1738961445560,-500.44857655,0.00016438,2]
[352145002,1738961445569,-500.0,0.00016438,2]
[352145004,1738961445578,-715.04,0.00016438,2]
[352145006,1738961445588,-500.0,0.00016438,2]
[352145008,1738961445597,-500.0,0.00016438,2]
[352145010,1738961445607,-500.0,0.00016438,2]
[352145012,1738961445616,-500.0,0.00016438,2]
[352145014,1738961445625,-500.0,0.00016438,2]
[352145016,1738961445634,-616.10776064,0.00016438,2]
[352145018,1738961445644,-500.0,0.00016438,2]
[352145020,1738961445653,-501.16386621,0.00016438,2]
[352145022,1738961445662,-500.0,0.00016438,2]
[352145024,1738961445671,-500.0,0.00016438,2]
[352145026,1738961445680,-466.51363151,0.00016438,2]
[352145028,1738961445690,-500.0,0.00016438,2]
[352145030,1738961445700,-500.0,0.00016438,2]
[352145032,1738961445709,-500.0,0.00016438,2]
[352145034,1738961445719,-500.0,0.00016438,2]
[352145036,1738961445728,-724.3,0.00016438,2]
[352145038,1738961445736,-501.13719716,0.00016438,2]
[352145040,1738961445746,-500.0,0.00016438,2]
[352145042,1738961445755,-500.0,0.00016438,2]
[352145044,1738961445764,-500.0,0.00016438,2]
[352145046,1738961445773,-500.0,0.00016438,2]
[352145048,1738961445783,-500.0,0.00016438,2]
[352145050,1738961445793,-500.46247755,0.00016438,2]
[352145052,1738961445803,-500.0,0.00016438,2]
[352145054,1738961445812,-500.0,0.00016438,2]
[352145056,1738961445822,-500.0,0.00016438,2]
[352145058,1738961445831,-500.0,0.00016438,2]
[352145060,1738961445840,-500.0,0.00016438,2]
[352145062,1738961445849,-500.0,0.00016438,2]
[352145064,1738961445859,-500.0,0.00016438,2]
[352145066,1738961445868,-500.0,0.00016438,2]
[352145068,1738961445877,-326.11479742,0.00016438,2]
[352145070,1738961445886,-500.0,0.00016438,2]
[352145072,1738961445895,-500.0,0.00016438,2]
[352145074,1738961445904,-643.3657092,0.00016438,2]
[352145076,1738961445914,-500.0,0.00016438,2]
[352145078,1738961445923,-500.0,0.00016438,2]
[352145079,1738961445933,-500.0,0.00016438,2]
[352145080,1738961445942,-500.0,0.00016438,2]
[352145081,1738961445952,-678.42,0.00016438,2]
[352145082,1738961445961,-500.0,0.00016438,2]
[352145083,1738961445971,-502.57171834,0.00016438,2]
[352145084,1738961445981,-500.0,0.00016438,2]
[352145085,1738961445990,-500.0,0.00016438,2]
[352145086,1738961445999,-500.0,0.00016438,2]
[352145087,1738961446008,-500.0,0.00016438,2]
[352145088,1738961446018,-500.0,0.00016438,2]
[352145090,1738961446027,-500.0,0.00016438,2]
[352145092,1738961446036,-500.0,0.00016438,2]
[352145094,1738961446048,-501.10556662,0.00016438,2]
[352145096,1738961446057,-500.0,0.00016438,2]
[352145097,1738961446066,-500.0,0.00016438,2]
[352145099,1738961446075,-500.0,0.00016438,2]
[352145102,1738961446085,-500.0,0.00016438,2]
[352145105,1738961446094,-500.0,0.00016438,2]
[352145108,1738961446104,-500.0,0.00016438,2]
[352145111,1738961446118,-500.0,0.00016438,2]
[352145114,1738961446128,-500.0,0.00016438,2]
[352145117,1738961446137,-500.0,0.00016438,2]
[352145121,1738961446147,-500.0,0.00016438,2]
[352145125,1738961446159,-500.0,0.00016438,2]
[352145127,1738961446168,-502.18,0.00016438,2]
[352145129,1738961446177,-500.0,0.00016438,2]
[352145132,1738961446187,-500.0,0.00016438,2]
[352145134,1738961446197,-500.0,0.00016438,2]
[352145137,1738961446206,-500.0,0.00016438,2]
[352145141,1738961446215,-500.0,0.00016438,2]
[352145144,1738961446224,-500.0,0.00016438,2]
[352145146,1738961446233,-500.0,0.00016438,2]
[352145148,1738961446243,-500.0,0.00016438,2]
[352145150,1738961446252,-500.0,0.00016438,2]
[352145152,1738961446260,-500.0,0.00016438,2]
[352145154,1738961446269,-339.850764,0.00016438,2]
[352145156,1738961446279,-500.0,0.00016438,2]
[352145158,1738961446288,-500.0,0.00016438,2]
[352145160,1738961446299,-500.0,0.00016438,2]
[352145162,1738961446308,-339.850764,0.00016438,2]
[352145164,1738961446317,-500.0,0.00016438,2]
[352145166,1738961446326,-500.0,0.00016438,2]
[352145168,1738961446335,-500.0,0.00016438,2]
[352145170,1738961446343,-500.0,0.00016438,2]
[352145172,1738961446352,-500.0,0.00016438,2]
[352145174,1738961446362,-501.09893282,0.00016438,2]
[352145176,1738961446371,-500.0,0.00016438,2]
[352145178,1738961446380,-500.0,0.00016438,2]
[352145180,1738961446388,-500.0,0.00016438,2]
[352145182,1738961446397,-500.0,0.00016438,2]
[352145184,1738961446406,-500.50364985,0.00016438,2]
[352145186,1738961446415,-500.0,0.00016438,2]
[352145188,1738961446423,-500.0,0.00016438,2]
[352145190,1738961446433,-500.0,0.00016438,2]
[352145192,1738961446442,-500.0,0.00016438,2]
[352145194,1738961446451,-500.0,0.00016438,2]
[352145196,1738961446460,-151.0,0.00016438,2]
[352145198,1738961446469,-500.0,0.00016438,2]
[352145200,1738961446478,-500.0,0.00016438,2]
[352145202,1738961446487,-500.0,0.00016438,2]
[352145204,1738961446496,-500.0,0.00016438,2]
[352145206,1738961446506,-500.0,0.00016438,2]
[352145208,1738961446515,-151.0,0.00016438,2]
[352145210,1738961446524,-500.0,0.00016438,2]
[352145212,1738961446533,-500.0,0.00016438,2]
[352145214,1738961446543,-500.0,0.00016438,2]
[352145216,1738961446552,-500.0,0.00016438,2]
[352145218,1738961446561,-500.0,0.00016438,2]
[352145220,1738961446570,-500.0,0.00016438,2]
[352145222,1738961446580,-500.0,0.00016438,2]
[352145224,1738961446589,-500.0,0.00016438,2]
[352145226,1738961446598,-500.0,0.00016438,2]
[352145228,1738961446607,-500.0,0.00016438,2]
[352145230,1738961446616,-500.0,0.00016438,2]
[352145232,1738961446625,-516.26,0.00016438,2]
[352145234,1738961446634,-500.0,0.00016438,2]
[352145236,1738961446643,-501.58447892,0.00016438,2]
[352145238,1738961446653,-500.0,0.00016438,2]
[352145240,1738961446662,-500.0,0.00016438,2]
[352145242,1738961446671,-500.0,0.00016438,2]
[352145244,1738961446680,-429.311271,0.00016438,2]
[352145246,1738961446690,-500.0,0.00016438,2]
[352145248,1738961446700,-503.31650611,0.00016438,2]
[352145250,1738961446709,-500.0,0.00016438,2]
[352145252,1738961446718,-429.311271,0.00016438,2]
[352145254,1738961446727,-5361.861183,0.00016438,2]
[352145256,1738961446736,-515.34059981,0.00016438,2]
[352145258,1738961446747,-5361.861183,0.00016438,2]
[352145260,1738961446757,-500.0,0.00016438,2]
[352145262,1738961446766,-2997.269093,0.00016438,2]
[352145264,1738961446777,-344.50658584,0.00016438,2]
[352145266,1738961446786,-500.0,0.00016438,2]
[352145268,1738961446797,-500.0,0.00016438,2]
[352145270,1738961446806,-2997.269093,0.00016438,2]
[352145272,1738961446815,-500.0,0.00016438,2]
[352145274,1738961446824,-500.0,0.00016438,2]
[352145276,1738961446833,-500.0,0.00016438,2]
[352145278,1738961446843,-500.0,0.00016438,2]
[352145280,1738961446852,-500.0,0.00016438,2]
[352145282,1738961446862,-500.0,0.00016438,2]
[352145284,1738961446871,-500.0,0.00016438,2]
[352145286,1738961446880,-500.0,0.00016438,2]
[352145288,1738961446889,-500.0,0.00016438,2]
[352145291,1738961446898,-500.0,0.00016438,2]
[352145293,1738961446907,-500.0,0.00016438,2]
[352145295,1738961446916,-500.0,0.00016438,2]
[352145297,1738961446926,-500.0,0.00016438,2]
[352145299,1738961446935,-500.0,0.00016438,2]
[352145301,1738961446944,-473.24634479,0.00016438,2]
[352145303,1738961446953,-500.0,0.00016438,2]
[352145305,1738961446963,-500.0,0.00016438,2]
[352145307,1738961446972,-500.0,0.00016438,2]
[352145309,1738961446982,-500.0,0.00016438,2]
[352145311,1738961446992,-500.0,0.00016438,2]
[352145313,1738961447001,-500.0,0.00016438,2]
[352145315,1738961447011,-500.0,0.00016438,2]
[352145317,1738961447020,-500.0,0.00016438,2]
[352145319,1738961447030,-500.0,0.00016438,2]
[352145321,1738961447039,-500.0,0.00016438,2]
[352145323,1738961447050,-500.0,0.00016438,2]
[352145325,1738961447060,-500.0,0.00016438,2]
[352145327,1738961447069,-500.0,0.00016438,2]
[352145329,1738961447079,-500.0,0.00016438,2]
[352145331,1738961447089,-500.0,0.00016438,2]
[352145333,1738961447098,-500.0,0.00016438,2]
[352145335,1738961447109,-500.0,0.00016438,2]
[352145337,1738961447122,-500.0,0.00016438,2]
[352145339,1738961447131,-500.0,0.00016438,2]
[352145341,1738961447141,-500.0,0.00016438,2]
[352145343,1738961447150,-500.0,0.00016438,2]
[352145345,1738961447162,-500.0,0.00016438,2]
[352145347,1738961447171,-500.0,0.00016438,2]
[352145349,1738961447181,-5000.0,0.00016438,2]
[352145351,1738961447191,-525.71,0.00016438,2]
[352145353,1738961447200,-500.0,0.00016438,2]
[352145355,1738961447210,-500.0,0.00016438,2]
[352145357,1738961447219,-500.0,0.00016438,2]
[352145359,1738961447228,-1692.98,0.00016438,2]
[352145361,1738961447238,-500.0,0.00016438,2]
[352145363,1738961447247,-500.0,0.00016438,2]
[352145365,1738961447256,-500.0,0.00016438,2]
[352145367,1738961447266,-500.0,0.00016438,2]
[352145369,1738961447275,-500.0,0.00016438,2]
[352145371,1738961447285,-500.0,0.00016438,2]
[352145373,1738961447296,-2084.63,0.00016438,2]
[352145376,1738961447305,-500.0,0.00016438,2]
[352145378,1738961447316,-500.0,0.00016438,2]
[352145380,1738961447327,-500.0,0.00016438,2]
[352145382,1738961447336,-500.0,0.00016438,2]
[352145384,1738961447345,-500.0,0.00016438,2]
[352145386,1738961447354,-500.0,0.00016438,2]
[352145388,1738961447363,-1483.274414,0.00016438,2]
[352145390,1738961447373,-500.0,0.00016438,2]
[352145391,1738961447382,-1483.274414,0.00016438,2]
[352145394,1738961447391,-500.0,0.00016438,2]
[352145396,1738961447401,-500.0,0.00016438,2]
[352145398,1738961447410,-500.0,0.00016438,2]
[352145400,1738961447419,-500.0,0.00016438,2]
[352145402,1738961447429,-500.0,0.00016438,2]
[352145404,1738961447438,-500.0,0.00016438,2]
[352145406,1738961447448,-500.0,0.00016438,2]
[352145408,1738961447457,-500.0,0.00016438,2]
[352145410,1738961447467,-500.0,0.00016438,2]
[352145411,1738961447476,-500.0,0.00016438,2]
[352145413,1738961447487,-500.0,0.00016438,2]
[352145415,1738961447496,-500.0,0.00016438,2]
[352145417,1738961447505,-500.0,0.00016438,2]
[352145419,1738961447515,-570.73,0.00016438,2]
[352145421,1738961447524,-500.0,0.00016438,2]
[352145424,1738961447534,-763.63,0.00016438,2]
[352145426,1738961447543,-500.0,0.00016438,2]
[352145428,1738961447552,-500.0,0.00016438,2]
[352145430,1738961447562,-637.42,0.00016438,2]
[352145431,1738961447571,-500.0,0.00016438,2]
[352145434,1738961447581,-188.789392,0.00016438,2]
[352145436,1738961447590,-500.0,0.00016438,2]
[352145438,1738961447599,-1367.13,0.00016438,2]
[352145440,1738961447609,-969.06,0.00016438,2]
[352145441,1738961447618,-500.0,0.00016438,2]
[352145443,1738961447627,-500.0,0.00016438,2]
[352145446,1738961447636,-1054.6,0.00016438,2]
[352145448,1738961447645,-500.0,0.00016438,2]
[352145450,1738961447654,-500.0,0.00016438,2]
[352145452,1738961447663,-500.0,0.00016438,2]
[352145454,1738961447672,-500.0,0.00016438,2]
[352145455,1738961447682,-500.0,0.00016438,2]
[352145457,1738961447691,-608.05,0.00016438,2]
[352145459,1738961447700,-500.0,0.00016438,2]
[352145461,1738961447710,-500.0,0.00016438,2]
[352145464,1738961447719,-500.0,0.00016438,2]
[352145466,1738961447729,-500.0,0.00016438,2]
[352145468,1738961447738,-524.382898,0.00016438,2]
[352145470,1738961447747,-500.0,0.00016438,2]
[352145472,1738961447757,-500.0,0.00016438,2]
[352145474,1738961447766,-500.0,0.00016438,2]
[352145475,1738961447776,-524.382898,0.00016438,2]
[352145477,1738961447785,-500.0,0.00016438,2]
[352145479,1738961447796,-500.0,0.00016438,2]
[352145482,1738961447806,-895.75,0.00016438,2]
[352145484,1738961447816,-500.0,0.00016438,2]
[352145485,1738961447825,-500.0,0.00016438,2]
[352145488,1738961447835,-500.0,0.00016438,2]
[352145490,1738961447844,-548.62,0.00016438,2]
[352145492,1738961447854,-500.0,0.00016438,2]
[352145493,1738961447864,-505.81,0.00016438,2]
[352145496,1738961447873,-971.051213,0.00016438,2]
[352145497,1738961447882,-500.0,0.00016438,2]
[352145499,1738961447892,-500.0,0.00016438,2]
[352145501,1738961447901,-500.0,0.00016438,2]
[352145503,1738961447910,-971.051213,0.00016438,2]
[352145505,1738961447920,-500.0,0.00016438,2]
[352145507,1738961447930,-500.0,0.00016438,2]
[352145509,1738961447939,-500.0,0.00016438,2]
[352145512,1738961447949,-500.0,0.00016438,2]
[352145514,1738961447958,-500.0,0.00016438,2]
[352145516,1738961447968,-1721.91,0.00016438,2]
[352145518,1738961447977,-1107.08,0.00016438,2]
[352145520,1738961447987,-500.0,0.00016438,2]
[352145522,1738961447997,-501.56068354,0.00016438,2]
[352145524,1738961448010,-2507.168506,0.00016438,2]
[352145526,1738961448020,-536.36402145,0.00016438,2]
[352145528,1738961448030,-555.95,0.00016438,2]
[352145530,1738961448041,-500.0,0.00016438,2]
[352145532,1738961448054,-500.0,0.00016438,2]
[352145534,1738961448064,-2507.168506,0.00016438,2]
[352145536,1738961448075,-500.0,0.00016438,2]
[352145538,1738961448085,-1245.0,0.00016438,2]
[352145540,1738961448096,-1364.97,0.00016438,2]
[352145542,1738961448110,-500.0,0.00016438,2]
[352145544,1738961448120,-158.204205,0.00016438,2]
[352145546,1738961448131,-500.0,0.00016438,2]
[352145548,1738961448142,-315.04146587,0.00016438,2]
[352145550,1738961448159,-500.0,0.00016438,2]
[352145552,1738961448170,-500.0,0.00016438,2]
[352145554,1738961448181,-500.0,0.00016438,2]
[352145573,1738961448386,-500.87996575,0.00016438,2]
[352145575,1738961448400,-543.79432063,0.00016438,2]
[352145577,1738961448412,-500.0,0.00016438,2]
[352145579,1738961448422,-151.0,0.00016438,2]